[Event "*** MasterClass Titled Tuesday Blitz"]
[Site "Chess.com"]
[Date "2017.09.05"]
[Round "2"]
[White "MatthewG-p4p"]
[Black "RitvarsReimanis"]
[Result "0-1"]
[WhiteElo "2581"]
[BlackElo "2473"]
[TimeControl "180+2"]
[EndTime "13:23:24 PDT"]
[Termination "RitvarsReimanis won by resignation"]

1. c4 {[%clk 0:03:00.2]} 1... e6 {[%clk 0:03:00.9]} 2. Nf3 {[%clk 0:02:57.9]}
2... d5 {[%clk 0:03:01.6]} 3. g3 {[%clk 0:02:58.9]} 3... Nf6 {[%clk 0:03:03.2]}
4. Bg2 {[%clk 0:03:00.1]} 4... Be7 {[%clk 0:03:04.8]} 5. b3 {[%clk 0:03:01.3]}
5... O-O {[%clk 0:03:06.1]} 6. O-O {[%clk 0:03:02.5]} 6... Ne4 {[%clk
0:03:07.4]} 7. Bb2 {[%clk 0:03:02.2]} 7... Bf6 {[%clk 0:03:08.7]} 8. d4 {[%clk
0:02:50.5]} 8... c6 {[%clk 0:03:07.3]} 9. Qc2 {[%clk 0:02:51.2]} 9... Be7 {[%clk
0:03:03.8]} 10. Nbd2 {[%clk 0:02:43.1]} 10... f5 {[%clk 0:03:04.4]} 11. Ne5
{[%clk 0:02:44]} 11... Nd7 {[%clk 0:03:05.4]} 12. Nd3 {[%clk 0:02:44.6]} 12...
Bg5 {[%clk 0:03:03.9]} 13. Nf3 {[%clk 0:02:43]} 13... Bf6 {[%clk 0:03:05.3]} 14.
Nfe5 {[%clk 0:02:42.2]} 14... Nxe5 {[%clk 0:03:04.9]} 15. dxe5 {[%clk
0:02:43.4]} 15... Be7 {[%clk 0:03:04.9]} 16. cxd5 {[%clk 0:02:39.7]} 16... exd5
{[%clk 0:03:04.7]} 17. Rfd1 {[%clk 0:02:32.8]} 17... Ng5 {[%clk 0:02:54.8]} 18.
a3 {[%clk 0:02:30.3]} 18... Ne6 {[%clk 0:02:55.1]} 19. b4 {[%clk 0:02:31]} 19...
a6 {[%clk 0:02:53.4]} 20. Qb3 {[%clk 0:02:27]} 20... Kh8 {[%clk 0:02:50.4]} 21.
Rac1 {[%clk 0:02:27.8]} 21... Bd7 {[%clk 0:02:51.5]} 22. a4 {[%clk 0:02:25.4]}
22... f4 {[%clk 0:02:50.4]} 23. Nc5 {[%clk 0:02:21.8]} 23... fxg3 {[%clk
0:02:44]} 24. hxg3 {[%clk 0:02:22.1]} 24... Nxc5 {[%clk 0:02:11.9]} 25. bxc5
{[%clk 0:02:23.3]} 25... Rb8 {[%clk 0:02:12.8]} 26. e4 {[%clk 0:02:23]} 26...
Qa5 {[%clk 0:02:03.1]} 27. Bd4 {[%clk 0:01:59.6]} 27... dxe4 {[%clk 0:01:51.1]}
28. Bxe4 {[%clk 0:02:00]} 28... Bg4 {[%clk 0:01:43.4]} 29. Rd3 {[%clk
0:01:55.9]} 29... Qc7 {[%clk 0:01:23]} 30. Bb2 {[%clk 0:01:45.7]} 30... Rbd8
{[%clk 0:01:14.6]} 31. Re1 {[%clk 0:01:37.4]} 31... Bxc5 {[%clk 0:01:11]} 32.
Rde3 {[%clk 0:01:08.1]} 32... Qb6 {[%clk 0:00:56.7]} 33. Qxb6 {[%clk 0:00:42]}
33... Bxb6 {[%clk 0:00:58.6]} 34. Ba3 {[%clk 0:00:42.9]} 34... Bxe3 {[%clk
0:00:47.1]} 35. Rxe3 {[%clk 0:00:34.5]} 35... Rfe8 {[%clk 0:00:43.5]} 36. Bd6
{[%clk 0:00:34.7]} 36... g6 {[%clk 0:00:39.9]} 37. Kg2 {[%clk 0:00:29.2]} 37...
Be6 {[%clk 0:00:38.7]} 38. Rc3 {[%clk 0:00:26.3]} 38... Bg8 {[%clk 0:00:37.5]}
39. Kf3 {[%clk 0:00:26]} 39... Kg7 {[%clk 0:00:36.5]} 40. Ke3 {[%clk 0:00:27.3]}
40... Bd5 {[%clk 0:00:30.4]} 41. Bxd5 {[%clk 0:00:27.9]} 41... Rxd6 {[%clk
0:00:30.6]} 42. Ba2 {[%clk 0:00:23.3]} 42... Rxe5+ {[%clk 0:00:31.6]} 43. Kf4
{[%clk 0:00:24.1]} 43... Rf5+ {[%clk 0:00:32.6]} 44. Ke3 {[%clk 0:00:25.1]}
44... Re5+ {[%clk 0:00:33.7]} 45. Kf4 {[%clk 0:00:26.2]} 45... Re7 {[%clk
0:00:35.1]} 46. Rc2 {[%clk 0:00:26.7]} 46... Rd4+ {[%clk 0:00:36.3]} 47. Kg5
{[%clk 0:00:27.8]} 47... Rxa4 {[%clk 0:00:38.2]} 48. f4 {[%clk 0:00:28.6]} 48...
h6+ {[%clk 0:00:38.1]} 49. Kg4 {[%clk 0:00:30]} 49... h5+ {[%clk 0:00:38.9]} 50.
Kh4 {[%clk 0:00:31.3]} 50... Kh6 {[%clk 0:00:39]} 51. Rd2 {[%clk 0:00:32.4]}
51... g5+ {[%clk 0:00:40]} 52. Kh3 {[%clk 0:00:34]} 52... gxf4 {[%clk 0:00:41]}
0-1

[Event "*** MasterClass Titled Tuesday Blitz"]
[Site "Chess.com"]
[Date "2017.09.05"]
[Round "2"]
[White "gmcorrales"]
[Black "swayamsm"]
[Result "0-1"]
[WhiteElo "2671"]
[BlackElo "2512"]
[TimeControl "180+2"]
[EndTime "13:23:31 PDT"]
[Termination "swayamsm won by checkmate"]

1. e4 {[%clk 0:02:57.4]} 1... e6 {[%clk 0:02:55.9]} 2. d4 {[%clk 0:02:58]} 2...
d5 {[%clk 0:02:57.4]} 3. e5 {[%clk 0:02:59.6]} 3... c5 {[%clk 0:02:58.1]} 4. c3
{[%clk 0:03:01.2]} 4... Nc6 {[%clk 0:02:59.7]} 5. Nf3 {[%clk 0:03:02.7]} 5...
Qb6 {[%clk 0:03:01.1]} 6. Be2 {[%clk 0:02:57.8]} 6... Nh6 {[%clk 0:02:48.8]} 7.
b3 {[%clk 0:02:58.3]} 7... Nf5 {[%clk 0:02:47.8]} 8. Bb2 {[%clk 0:02:58.7]} 8...
Be7 {[%clk 0:02:32.1]} 9. h4 {[%clk 0:02:52.5]} 9... Bd7 {[%clk 0:02:25.7]} 10.
h5 {[%clk 0:02:47.7]} 10... Rc8 {[%clk 0:02:11.4]} 11. Kf1 {[%clk 0:02:28.6]}
11... a5 {[%clk 0:01:58.3]} 12. a4 {[%clk 0:01:53.1]} 12... f6 {[%clk
0:01:38.1]} 13. g4 {[%clk 0:01:51.4]} 13... Nh6 {[%clk 0:01:34.7]} 14. exf6
{[%clk 0:01:52.7]} 14... gxf6 {[%clk 0:01:36]} 15. Rg1 {[%clk 0:01:53]} 15...
Rg8 {[%clk 0:01:34.6]} 16. Ne1 {[%clk 0:01:44.2]} 16... Nf7 {[%clk 0:01:23.4]}
17. Na3 {[%clk 0:01:37.5]} 17... Nd6 {[%clk 0:01:15.9]} 18. Nb5 {[%clk
0:01:32.1]} 18... cxd4 {[%clk 0:01:16.2]} 19. cxd4 {[%clk 0:01:29.2]} 19... Nb4
{[%clk 0:01:14.4]} 20. Nxd6+ {[%clk 0:01:28.9]} 20... Bxd6 {[%clk 0:01:16.3]}
21. Nd3 {[%clk 0:01:24.8]} 21... Nc2 {[%clk 0:01:10]} 22. Nc5 {[%clk 0:01:12.5]}
22... Nxa1 {[%clk 0:01:07.2]} 23. Nxd7 {[%clk 0:01:13.6]} 23... Kxd7 {[%clk
0:01:05.5]} 24. Bb5+ {[%clk 0:01:14.7]} 24... Ke7 {[%clk 0:01:06.9]} 25. Bxa1
{[%clk 0:01:15.1]} 25... Qc7 {[%clk 0:01:06.9]} 26. Qf3 {[%clk 0:01:06.3]} 26...
Qc2 {[%clk 0:00:53.8]} 27. Bd3 {[%clk 0:00:51.3]} 27... Qxb3 {[%clk 0:00:53.4]}
28. Kg2 {[%clk 0:00:52.5]} 28... Qxa4 {[%clk 0:00:44]} 29. Re1 {[%clk
0:00:49.6]} 29... Kf7 {[%clk 0:00:43.4]} 30. Rxe6 {[%clk 0:00:39.6]} 30... Kxe6
{[%clk 0:00:39]} 31. Qf5+ {[%clk 0:00:40.1]} 31... Kf7 {[%clk 0:00:22.6]} 32.
Qxh7+ {[%clk 0:00:40.9]} 32... Kf8 {[%clk 0:00:21.4]} 33. Qh6+ {[%clk
0:00:31.3]} 33... Ke7 {[%clk 0:00:19.3]} 34. Qh7+ {[%clk 0:00:27.4]} 34... Kf8
{[%clk 0:00:20.8]} 35. Qh6+ {[%clk 0:00:26.7]} 35... Ke7 {[%clk 0:00:20]} 36.
Bf5 {[%clk 0:00:27.3]} 36... Rc7 {[%clk 0:00:18]} 37. Bc3 {[%clk 0:00:20]} 37...
Rxc3 {[%clk 0:00:14.8]} 38. Qh7+ {[%clk 0:00:18.7]} 38... Kf8 {[%clk 0:00:15.3]}
39. Be6 {[%clk 0:00:18.1]} 39... Rg7 {[%clk 0:00:16.2]} 40. Qh8+ {[%clk
0:00:15.6]} 40... Ke7 {[%clk 0:00:17.8]} 41. Qxg7+ {[%clk 0:00:14.3]} 41... Kxe6
{[%clk 0:00:19.2]} 42. h6 {[%clk 0:00:15]} 42... Qxd4 {[%clk 0:00:19.9]} 43. h7
{[%clk 0:00:13.5]} 43... Qe4+ {[%clk 0:00:20.9]} 44. f3 {[%clk 0:00:11.3]} 44...
Qxf3+ {[%clk 0:00:20.6]} 45. Kg1 {[%clk 0:00:12.6]} 45... Rc1# {[%clk
0:00:21.5]} 0-1

[Event "*** MasterClass Titled Tuesday Blitz"]
[Site "Chess.com"]
[Date "2017.09.05"]
[Round "2"]
[White "GMKrikor"]
[Black "SavelijTartakover"]
[Result "1-0"]
[WhiteElo "2575"]
[BlackElo "2571"]
[TimeControl "180+2"]
[EndTime "13:23:53 PDT"]
[Termination "GMKrikor won by resignation"]

1. e4 {[%clk 0:02:59]} 1... c5 {[%clk 0:03:00.3]} 2. Nf3 {[%clk 0:02:57.9]} 2...
d6 {[%clk 0:03:01.3]} 3. d4 {[%clk 0:02:52.5]} 3... cxd4 {[%clk 0:03:02.2]} 4.
Nxd4 {[%clk 0:02:54.2]} 4... Nf6 {[%clk 0:03:03]} 5. Nc3 {[%clk 0:02:55.9]} 5...
Nc6 {[%clk 0:03:03.3]} 6. Bg5 {[%clk 0:02:54.9]} 6... e6 {[%clk 0:03:04.1]} 7.
Qd2 {[%clk 0:02:55.9]} 7... a6 {[%clk 0:03:02.2]} 8. O-O-O {[%clk 0:02:55.9]}
8... Bd7 {[%clk 0:03:03.2]} 9. f3 {[%clk 0:02:53.6]} 9... Be7 {[%clk 0:03:03.7]}
10. Be3 {[%clk 0:02:49.7]} 10... h5 {[%clk 0:03:04]} 11. Kb1 {[%clk 0:02:46.2]}
11... b5 {[%clk 0:03:04.2]} 12. Bd3 {[%clk 0:02:22]} 12... Qc7 {[%clk
0:03:00.9]} 13. h3 {[%clk 0:02:12.1]} 13... h4 {[%clk 0:03:00.7]} 14. Rhe1
{[%clk 0:02:10.5]} 14... Rb8 {[%clk 0:02:54]} 15. f4 {[%clk 0:01:52.1]} 15...
Nxd4 {[%clk 0:02:33.5]} 16. Bxd4 {[%clk 0:01:52.3]} 16... b4 {[%clk 0:02:34.1]}
17. Ne2 {[%clk 0:01:47]} 17... e5 {[%clk 0:02:29.3]} 18. Bf2 {[%clk 0:01:31.7]}
18... a5 {[%clk 0:02:22.2]} 19. Ng1 {[%clk 0:01:18.6]} 19... a4 {[%clk
0:02:07.8]} 20. Nf3 {[%clk 0:01:17.7]} 20... exf4 {[%clk 0:01:44.4]} 21. e5
{[%clk 0:01:18]} 21... dxe5 {[%clk 0:01:39.9]} 22. Nxe5 {[%clk 0:01:17.7]} 22...
Be6 {[%clk 0:01:37.5]} 23. Qxf4 {[%clk 0:00:45.5]} 23... Nd5 {[%clk 0:01:36.6]}
24. Qe4 {[%clk 0:00:33.1]} 24... a3 {[%clk 0:01:13.7]} 25. Bc4 {[%clk
0:00:30.8]} 25... Nf6 {[%clk 0:01:03.7]} 26. Qe2 {[%clk 0:00:31.6]} 26... b3
{[%clk 0:00:53.5]} 27. cxb3 {[%clk 0:00:31]} 27... axb2 {[%clk 0:00:34.7]} 28.
Bxe6 {[%clk 0:00:30.6]} 28... fxe6 {[%clk 0:00:35.9]} 29. Nc4 {[%clk 0:00:23.1]}
29... Nd5 {[%clk 0:00:26.9]} 30. Qxe6 {[%clk 0:00:18.4]} 30... Nc3+ {[%clk
0:00:27.6]} 31. Kxb2 {[%clk 0:00:20]} 31... Nxd1+ {[%clk 0:00:28.3]} 32. Rxd1
{[%clk 0:00:21.7]} 32... Rd8 {[%clk 0:00:21.6]} 33. Qg6+ {[%clk 0:00:21.8]}
33... Kf8 {[%clk 0:00:21.2]} 34. Bd4 {[%clk 0:00:22.2]} 34... Rxd4 {[%clk
0:00:20.1]} 35. Rf1+ {[%clk 0:00:19.9]} 35... Bf6 {[%clk 0:00:17.4]} 36. Rxf6+
{[%clk 0:00:20.8]} 36... gxf6 {[%clk 0:00:17.9]} 37. Qxf6+ {[%clk 0:00:22.7]}
37... Kg8 {[%clk 0:00:19.3]} 38. Qxd4 {[%clk 0:00:19.6]} 38... Qg7 {[%clk
0:00:16.3]} 39. Qxg7+ {[%clk 0:00:16.9]} 39... Kxg7 {[%clk 0:00:17.3]} 40. a4
{[%clk 0:00:18.8]} 40... Kf6 {[%clk 0:00:18.3]} 41. a5 {[%clk 0:00:17.9]} 41...
Rg8 {[%clk 0:00:19.4]} 42. a6 {[%clk 0:00:14.5]} 42... Rxg2+ {[%clk 0:00:19.9]}
43. Ka3 {[%clk 0:00:16.1]} 43... Rg7 {[%clk 0:00:16.1]} 44. b4 {[%clk
0:00:14.6]} 44... Rg3+ {[%clk 0:00:14.1]} 45. Ka4 {[%clk 0:00:14.8]} 45... Ke6
{[%clk 0:00:10.5]} 46. a7 {[%clk 0:00:14.3]} 46... Rg8 {[%clk 0:00:10.8]} 47.
Nb6 {[%clk 0:00:15.1]} 47... Kf5 {[%clk 0:00:11.9]} 48. a8=Q {[%clk 0:00:16.4]}
48... Rxa8+ {[%clk 0:00:13.4]} 49. Nxa8 {[%clk 0:00:18.3]} 49... Kf4 {[%clk
0:00:14.8]} 50. b5 {[%clk 0:00:18.5]} 50... Kg3 {[%clk 0:00:16.4]} 51. b6 {[%clk
0:00:20.4]} 51... Kxh3 {[%clk 0:00:17.9]} 52. b7 {[%clk 0:00:22.3]} 1-0

[Event "*** MasterClass Titled Tuesday Blitz"]
[Site "Chess.com"]
[Date "2017.09.05"]
[Round "2"]
[White "cheese111"]
[Black "ditkin25"]
[Result "1-0"]
[WhiteElo "2307"]
[BlackElo "2213"]
[TimeControl "180+2"]
[EndTime "13:24:01 PDT"]
[Termination "cheese111 won by resignation"]

1. e4 {[%clk 0:03:02]} 1... c5 {[%clk 0:02:58.9]} 2. Nf3 {[%clk 0:03:03]} 2...
d6 {[%clk 0:02:59.7]} 3. d4 {[%clk 0:03:04.1]} 3... Nf6 {[%clk 0:03:00.8]} 4.
Nc3 {[%clk 0:03:04.6]} 4... cxd4 {[%clk 0:03:02]} 5. Nxd4 {[%clk 0:03:06.6]}
5... Nc6 {[%clk 0:03:03.1]} 6. f3 {[%clk 0:03:07]} 6... e5 {[%clk 0:03:03.5]} 7.
Nb3 {[%clk 0:03:08]} 7... Be7 {[%clk 0:03:04.9]} 8. Be3 {[%clk 0:03:07.8]} 8...
Be6 {[%clk 0:03:05.8]} 9. Qe2 {[%clk 0:03:07.1]} 9... d5 {[%clk 0:03:03.5]} 10.
exd5 {[%clk 0:03:06.8]} 10... Nxd5 {[%clk 0:03:04.3]} 11. O-O-O {[%clk
0:03:07.8]} 11... Rc8 {[%clk 0:02:24.1]} 12. Nxd5 {[%clk 0:02:57.7]} 12... Bxd5
{[%clk 0:02:25]} 13. Qb5 {[%clk 0:02:56.8]} 13... Bg5 {[%clk 0:02:12.4]} 14. f4
{[%clk 0:02:40.6]} 14... exf4 {[%clk 0:01:44.1]} 15. Rxd5 {[%clk 0:02:31.2]}
15... Qe7 {[%clk 0:01:43.7]} 16. Bd2 {[%clk 0:02:12.1]} 16... Bh6 {[%clk
0:01:02.8]} 17. Qc5 {[%clk 0:02:08.2]} 17... O-O {[%clk 0:00:41.5]} 18. Qxe7
{[%clk 0:02:07.5]} 18... Nxe7 {[%clk 0:00:43.4]} 19. Rd7 {[%clk 0:02:05.5]}
19... Nf5 {[%clk 0:00:43.7]} 20. Bd3 {[%clk 0:02:02.2]} 20... Ne3 {[%clk
0:00:40.4]} 21. g3 {[%clk 0:02:00.7]} 21... f3 {[%clk 0:00:26.2]} 22. Bxe3
{[%clk 0:01:40.6]} 22... Bxe3+ {[%clk 0:00:25.7]} 23. Kd1 {[%clk 0:01:42.2]}
23... f5 {[%clk 0:00:17.1]} 24. Rf1 {[%clk 0:01:30.6]} 24... f2 {[%clk
0:00:17.4]} 25. Ke2 {[%clk 0:01:24.3]} 25... Rce8 {[%clk 0:00:18.4]} 26. Bc4+
{[%clk 0:01:24.8]} 26... Kh8 {[%clk 0:00:19]} 27. Rf7 {[%clk 0:01:20.7]} 27...
Rxf7 {[%clk 0:00:14.9]} 28. Bxf7 {[%clk 0:01:21.2]} 28... Re7 {[%clk 0:00:16.8]}
29. Kf3 {[%clk 0:01:15.9]} 29... g6 {[%clk 0:00:16.7]} 30. c3 {[%clk 0:01:09.7]}
30... Kg7 {[%clk 0:00:17.8]} 31. Bc4 {[%clk 0:01:10]} 31... Kf6 {[%clk
0:00:18.8]} 32. Nd4 {[%clk 0:00:39.2]} 32... g5 {[%clk 0:00:19.9]} 33. Nc2
{[%clk 0:00:32.2]} 33... Bb6 {[%clk 0:00:18.1]} 34. Nd4 {[%clk 0:00:31.6]} 34...
Re1 {[%clk 0:00:10.4]} 35. Kxf2 {[%clk 0:00:31.2]} 35... Re7 {[%clk 0:00:08.1]}
36. Re1 {[%clk 0:00:28.4]} 36... Rd7 {[%clk 0:00:08.3]} 37. Re6+ {[%clk
0:00:27]} 37... Kg7 {[%clk 0:00:08.1]} 38. Ke3 {[%clk 0:00:22.8]} 38... f4+
{[%clk 0:00:09]} 39. gxf4 {[%clk 0:00:22.9]} 39... gxf4+ {[%clk 0:00:10.9]} 40.
Kxf4 {[%clk 0:00:21.4]} 40... Bxd4 {[%clk 0:00:11.9]} 41. cxd4 {[%clk
0:00:23.3]} 41... Rxd4+ {[%clk 0:00:12.9]} 42. Re4 {[%clk 0:00:24.9]} 42... Rd2
{[%clk 0:00:14.4]} 43. b4 {[%clk 0:00:17.8]} 43... Rxh2 {[%clk 0:00:12.7]} 44.
Kg3 {[%clk 0:00:17.1]} 44... Rc2 {[%clk 0:00:12.3]} 45. Bb3 {[%clk 0:00:12.7]}
45... Rc3+ {[%clk 0:00:13]} 46. Kg4 {[%clk 0:00:12.9]} 46... Rc7 {[%clk
0:00:07.8]} 47. Re6 {[%clk 0:00:13.9]} 47... a6 {[%clk 0:00:08.5]} 48. Kg5
{[%clk 0:00:13.7]} 48... Rd7 {[%clk 0:00:07]} 49. Rb6 {[%clk 0:00:13.7]} 49...
Rc7 {[%clk 0:00:08]} 50. Bd5 {[%clk 0:00:13.9]} 50... Rd7 {[%clk 0:00:08.9]} 51.
Rxb7 {[%clk 0:00:14.9]} 51... h6+ {[%clk 0:00:09.9]} 52. Kh5 {[%clk 0:00:15.1]}
52... Rxb7 {[%clk 0:00:10.7]} 53. Bxb7 {[%clk 0:00:17.1]} 53... Kf6 {[%clk
0:00:10]} 54. Bxa6 {[%clk 0:00:18.1]} 54... Ke6 {[%clk 0:00:11.9]} 55. a4 {[%clk
0:00:19]} 55... Kd6 {[%clk 0:00:13.2]} 56. b5 {[%clk 0:00:21]} 56... Kc5 {[%clk
0:00:14.3]} 57. a5 {[%clk 0:00:22.5]} 1-0

[Event "*** MasterClass Titled Tuesday Blitz"]
[Site "Chess.com"]
[Date "2017.09.05"]
[Round "2"]
[White "Art10ECHR"]
[Black "nickmatta"]
[Result "1/2-1/2"]
[WhiteElo "2225"]
[BlackElo "2313"]
[TimeControl "180+2"]
[EndTime "13:24:02 PDT"]
[Termination "Game drawn by agreement"]

1. e4 {[%clk 0:03:01.9]} 1... c5 {[%clk 0:03:00.5]} 2. Nf3 {[%clk 0:02:59.6]}
2... d6 {[%clk 0:03:01.1]} 3. Bb5+ {[%clk 0:02:59.9]} 3... Nd7 {[%clk 0:03:01]}
4. Ba4 {[%clk 0:02:59.9]} 4... Nf6 {[%clk 0:03:00.2]} 5. O-O {[%clk 0:03:00.4]}
5... a6 {[%clk 0:02:56]} 6. c4 {[%clk 0:02:57.2]} 6... Nxe4 {[%clk 0:02:50.8]}
7. d4 {[%clk 0:02:57.7]} 7... g6 {[%clk 0:02:46.7]} 8. Re1 {[%clk 0:02:42.4]}
8... Nf6 {[%clk 0:02:42.8]} 9. dxc5 {[%clk 0:02:37.2]} 9... dxc5 {[%clk
0:02:40.3]} 10. Bf4 {[%clk 0:02:36]} 10... Qb6 {[%clk 0:01:15.6]} 11. Qe2 {[%clk
0:02:27.8]} 11... Nh5 {[%clk 0:01:15.4]} 12. Bg5 {[%clk 0:02:25.3]} 12... e6
{[%clk 0:01:05.3]} 13. Nc3 {[%clk 0:02:21.4]} 13... Bg7 {[%clk 0:01:02.7]} 14.
Nd5 {[%clk 0:02:19.3]} 14... Qa5 {[%clk 0:00:45.1]} 15. Rad1 {[%clk 0:02:04]}
15... h6 {[%clk 0:00:19.4]} 16. g4 {[%clk 0:01:47.9]} 16... hxg5 {[%clk
0:00:19.4]} 17. gxh5 {[%clk 0:01:43.1]} 17... Rxh5 {[%clk 0:00:20.4]} 18. Ne5
{[%clk 0:01:40.8]} 18... b5 {[%clk 0:00:09.9]} 19. Nxf7 {[%clk 0:01:33.9]} 19...
Nf8 {[%clk 0:00:04.8]} 20. cxb5 {[%clk 0:01:07.4]} 20... Kxf7 {[%clk 0:00:05.8]}
21. Bb3 {[%clk 0:01:01.5]} 21... Qxb5 {[%clk 0:00:03.9]} 22. Bc4 {[%clk
0:01:01.2]} 22... Qb8 {[%clk 0:00:04.8]} 23. f4 {[%clk 0:00:59.1]} 23... exd5
{[%clk 0:00:03.1]} 24. Bxd5+ {[%clk 0:00:58.6]} 24... Kf6 {[%clk 0:00:04.7]} 25.
Qe7+ {[%clk 0:00:51.4]} 25... Kf5 {[%clk 0:00:05.3]} 26. Qxg7 {[%clk 0:00:41.7]}
26... gxf4 {[%clk 0:00:06.2]} 27. Qf7+ {[%clk 0:00:33.6]} 27... Kg5 {[%clk
0:00:07.6]} 28. Qe7+ {[%clk 0:00:30.1]} 28... Kg4 {[%clk 0:00:03.3]} 29. Qe2+
{[%clk 0:00:20.2]} 29... Kg5 {[%clk 0:00:04]} 30. Qe7+ {[%clk 0:00:21.1]} 30...
Kg4 {[%clk 0:00:05.1]} 31. Rf1 {[%clk 0:00:22.6]} 31... Rxd5 {[%clk 0:00:03.1]}
32. Rxd5 {[%clk 0:00:21.2]} 32... Bf5 {[%clk 0:00:04.6]} 33. Qe2+ {[%clk
0:00:20.8]} 33... Kg5 {[%clk 0:00:05.7]} 34. h4+ {[%clk 0:00:21]} 34... Kh6
{[%clk 0:00:06.4]} 35. Qe7 {[%clk 0:00:21.3]} 35... Ne6 {[%clk 0:00:04.9]} 36.
Rxf5 {[%clk 0:00:21.1]} 36... gxf5 {[%clk 0:00:05.9]} 37. Qxe6+ {[%clk
0:00:22.3]} 37... Kh7 {[%clk 0:00:06.5]} 38. Qxf5+ {[%clk 0:00:23.2]} 38... Kh8
{[%clk 0:00:07.9]} 39. Qf6+ {[%clk 0:00:24]} 39... Kh7 {[%clk 0:00:08.9]} 40.
Rxf4 {[%clk 0:00:21.9]} 40... Qg8+ {[%clk 0:00:08.9]} 41. Kh2 {[%clk 0:00:21.8]}
41... Re8 {[%clk 0:00:06.4]} 42. Qf5+ {[%clk 0:00:20.5]} 42... Qg6 {[%clk
0:00:07.4]} 43. Qd7+ {[%clk 0:00:20.1]} 43... Kh6 {[%clk 0:00:07]} 44. Qd2
{[%clk 0:00:17.9]} 44... Kh7 {[%clk 0:00:07.1]} 45. Qf2 {[%clk 0:00:17.9]} 45...
Rg8 {[%clk 0:00:05.5]} 46. Rf7+ {[%clk 0:00:18]} 46... Kh8 {[%clk 0:00:04.6]}
47. Qf6+ {[%clk 0:00:19.3]} 47... Qxf6 {[%clk 0:00:05.4]} 48. Rxf6 {[%clk
0:00:21.2]} 48... Rb8 {[%clk 0:00:06.9]} 49. b3 {[%clk 0:00:20.9]} 49... c4
{[%clk 0:00:07.7]} 50. Rxa6 {[%clk 0:00:19.4]} 50... cxb3 {[%clk 0:00:08.7]} 51.
axb3 {[%clk 0:00:19.9]} 51... Rxb3 {[%clk 0:00:10.6]} 52. Rg6 {[%clk 0:00:21]}
52... Kh7 {[%clk 0:00:11.9]} 53. Rg5 {[%clk 0:00:21.9]} 53... Kh6 {[%clk
0:00:13.2]} 54. Rc5 {[%clk 0:00:21.9]} 54... Kh7 {[%clk 0:00:13.6]} 55. Kg2
{[%clk 0:00:22.9]} 55... Kh6 {[%clk 0:00:15]} 56. Kh2 {[%clk 0:00:24.1]} 56...
Kh7 {[%clk 0:00:16.5]} 1/2-1/2

[Event "*** MasterClass Titled Tuesday Blitz"]
[Site "Chess.com"]
[Date "2017.09.05"]
[Round "2"]
[White "jk13"]
[Black "PrinceMurad09"]
[Result "1-0"]
[WhiteElo "2405"]
[BlackElo "2343"]
[TimeControl "180+2"]
[EndTime "13:24:03 PDT"]
[Termination "jk13 won by resignation"]

1. e4 {[%clk 0:03:02]} 1... c5 {[%clk 0:03:00.9]} 2. c3 {[%clk 0:03:02.7]} 2...
Nf6 {[%clk 0:02:56.8]} 3. e5 {[%clk 0:03:04]} 3... Nd5 {[%clk 0:02:57.9]} 4. Bc4
{[%clk 0:03:05.7]} 4... Nb6 {[%clk 0:02:58.1]} 5. Bb3 {[%clk 0:03:07]} 5... d5
{[%clk 0:02:58]} 6. exd6 {[%clk 0:03:07.9]} 6... Qxd6 {[%clk 0:02:56.5]} 7. Nf3
{[%clk 0:03:09.4]} 7... e6 {[%clk 0:02:55.6]} 8. O-O {[%clk 0:03:09.8]} 8... Be7
{[%clk 0:02:56.5]} 9. d4 {[%clk 0:03:11.3]} 9... N8d7 {[%clk 0:02:47.7]} 10.
Nbd2 {[%clk 0:03:03.9]} 10... O-O {[%clk 0:02:43.3]} 11. Ne4 {[%clk 0:03:04.5]}
11... Qc7 {[%clk 0:02:44]} 12. Be3 {[%clk 0:03:00]} 12... Qc6 {[%clk 0:02:20.2]}
13. Qb1 {[%clk 0:02:27.5]} 13... Nd5 {[%clk 0:02:11.7]} 14. Nfg5 {[%clk
0:02:05.8]} 14... Bxg5 {[%clk 0:01:47.5]} 15. Bxg5 {[%clk 0:01:53]} 15... c4
{[%clk 0:01:33.8]} 16. Bc2 {[%clk 0:01:52]} 16... f5 {[%clk 0:01:34.9]} 17. Ng3
{[%clk 0:01:44.7]} 17... h6 {[%clk 0:01:35.6]} 18. Bd2 {[%clk 0:01:43.9]} 18...
N7f6 {[%clk 0:01:36.3]} 19. Re1 {[%clk 0:01:40.4]} 19... Bd7 {[%clk 0:01:35.9]}
20. Qd1 {[%clk 0:01:38.7]} 20... Be8 {[%clk 0:01:26.2]} 21. Qf3 {[%clk
0:01:30.8]} 21... Bf7 {[%clk 0:01:25.2]} 22. h3 {[%clk 0:01:28]} 22... Rfe8
{[%clk 0:01:22.5]} 23. Re5 {[%clk 0:01:26.3]} 23... Nd7 {[%clk 0:01:16.1]} 24.
Re2 {[%clk 0:01:24.6]} 24... b5 {[%clk 0:01:05.5]} 25. Rae1 {[%clk 0:01:21.6]}
25... a5 {[%clk 0:01:00.7]} 26. Nh5 {[%clk 0:01:21.2]} 26... Rac8 {[%clk
0:00:29.9]} 27. Bxh6 {[%clk 0:01:10.8]} 27... Bxh5 {[%clk 0:00:27.6]} 28. Qxh5
{[%clk 0:01:12.7]} 28... gxh6 {[%clk 0:00:28.6]} 29. Qg6+ {[%clk 0:01:07]} 29...
Kf8 {[%clk 0:00:29.5]} 30. Rxe6 {[%clk 0:01:04.2]} 30... Rxe6 {[%clk 0:00:22.3]}
31. Rxe6 {[%clk 0:01:06.1]} 31... Qc7 {[%clk 0:00:20.7]} 32. Qxh6+ {[%clk
0:00:57]} 32... Kf7 {[%clk 0:00:21.7]} 33. Qg6+ {[%clk 0:00:48.4]} 33... Kf8
{[%clk 0:00:21.4]} 34. Qxf5+ {[%clk 0:00:48.5]} 34... N5f6 {[%clk 0:00:20.3]}
35. Rxf6+ {[%clk 0:00:44.4]} 35... Nxf6 {[%clk 0:00:22.2]} 36. Qxf6+ {[%clk
0:00:45.9]} 36... Qf7 {[%clk 0:00:23.7]} 37. Qd6+ {[%clk 0:00:41.8]} 37... Qe7
{[%clk 0:00:23.6]} 38. Qf4+ {[%clk 0:00:39.7]} 38... Qf7 {[%clk 0:00:23.7]} 39.
Bf5 {[%clk 0:00:34.6]} 39... Re8 {[%clk 0:00:23]} 40. Kf1 {[%clk 0:00:32.1]}
40... Qf6 {[%clk 0:00:20.8]} 41. g4 {[%clk 0:00:30.3]} 41... b4 {[%clk 0:00:20]}
42. Qc7 {[%clk 0:00:21.4]} 42... Qe7 {[%clk 0:00:15.9]} 43. Qxc4 {[%clk
0:00:19.8]} 43... Qe1+ {[%clk 0:00:12.8]} 44. Kg2 {[%clk 0:00:21.3]} 44... Re2
{[%clk 0:00:13.1]} 45. Qc8+ {[%clk 0:00:20.9]} 45... Ke7 {[%clk 0:00:14.4]} 46.
Qc7+ {[%clk 0:00:20.8]} 46... Kf6 {[%clk 0:00:15.5]} 47. Qd6+ {[%clk 0:00:20.7]}
47... Kg7 {[%clk 0:00:16.3]} 48. Qc7+ {[%clk 0:00:22]} 48... Kf6 {[%clk
0:00:17.6]} 49. Qf4 {[%clk 0:00:23]} 49... Ke7 {[%clk 0:00:16.6]} 50. cxb4
{[%clk 0:00:20.6]} 50... axb4 {[%clk 0:00:17.4]} 51. g5 {[%clk 0:00:21.3]} 51...
Rxb2 {[%clk 0:00:18.3]} 52. g6 {[%clk 0:00:22.2]} 52... Kf6 {[%clk 0:00:18.6]}
53. Bd3+ {[%clk 0:00:20.8]} 53... Kg7 {[%clk 0:00:18.9]} 54. Qf7+ {[%clk
0:00:21.7]} 54... Kh6 {[%clk 0:00:20.3]} 55. Qf8+ {[%clk 0:00:22.5]} 55... Kg5
{[%clk 0:00:20.8]} 56. g7 {[%clk 0:00:23.7]} 1-0